[Event "Titled Tuesday Blitz April 18 Early 2023"]
[White "Shevtchenko, Olesya"]
[Black "Andreev, Konstantin"]
[WhiteFideId "24131890"]
[BlackFideId "24239305"]
[WhiteElo "2003"]
[BlackElo "2106"]
[Result "0-1"]
[Round "09"]
[TimeControl "180+2"]
[Date "2023.04.18"]
[WhiteClock "0:00:14"]
[BlackClock "0:01:13"]

1. e4 {[%clk 0:02:58]}  c5 {[%clk 0:02:57]} 2. Nf3 {[%clk 0:02:58]}  e6 {[%clk 0:02:57]} 3. d4 {[%clk 0:02:58]}  cxd4 {[%clk 0:02:58]} 4. Nxd4 {[%clk 0:02:59]}  Nc6 {[%clk 0:02:57]} 5. Nc3 {[%clk 0:02:59]}  Qc7 {[%clk 0:02:57]} 6. Qd3 {[%clk 0:03:00]}  Nf6 {[%clk 0:02:56]} 7. Nxc6 {[%clk 0:03:00]}  bxc6 {[%clk 0:02:55]} 8. Qg3 {[%clk 0:03:00]}  Qxg3 {[%clk 0:02:53]} 9. hxg3 {[%clk 0:03:01]}  Be7 {[%clk 0:02:53]} 10. Bd3 {[%clk 0:02:55]}  d5 {[%clk 0:02:50]} 11. f3 {[%clk 0:02:50]}  c5 {[%clk 0:02:47]} 12. exd5 {[%clk 0:02:46]}  exd5 {[%clk 0:02:45]} 13. Bb5+ {[%clk 0:02:40]}  Bd7 {[%clk 0:02:44]} 14. Bg5 {[%clk 0:02:29]}  d4 {[%clk 0:02:39]} 15. Bxf6 {[%clk 0:02:26]}  Bxf6 {[%clk 0:02:35]} 16. Bxd7+ {[%clk 0:02:25]}  Kxd7 {[%clk 0:02:36]} 17. Ne4 {[%clk 0:02:25]}  Be7 {[%clk 0:02:35]} 18. O-O-O {[%clk 0:02:23]}  Kc6 {[%clk 0:02:34]} 19. b3 {[%clk 0:02:23]}  f5 {[%clk 0:02:32]} 20. Nd2 {[%clk 0:02:22]}  Bd6 {[%clk 0:02:33]} 21. Rh3 {[%clk 0:02:09]}  h6 {[%clk 0:02:30]} 22. Nc4 {[%clk 0:02:08]}  Bc7 {[%clk 0:02:30]} 23. g4 {[%clk 0:02:01]}  fxg4 {[%clk 0:02:29]} 24. fxg4 {[%clk 0:02:02]}  Rae8 {[%clk 0:02:29]} 25. Rf3 {[%clk 0:01:57]}  Re4 {[%clk 0:02:17]} 26. g5 {[%clk 0:01:48]}  hxg5 {[%clk 0:02:14]} 27. Rf7 {[%clk 0:01:43]}  Rh2 {[%clk 0:02:11]} 28. Rxg7 {[%clk 0:01:09]}  Rxg2 {[%clk 0:02:09]} 29. Rf1 {[%clk 0:01:07]}  Bf4+ {[%clk 0:02:04]} 30. Kb1 {[%clk 0:01:00]}  Ree2 {[%clk 0:02:02]} 31. Rh1 {[%clk 0:00:50]}  Rxc2 {[%clk 0:01:45]} 32. Rh6+ {[%clk 0:00:45]}  Kd5 {[%clk 0:01:43]} 33. Rd7+ {[%clk 0:00:29]}  Ke4 {[%clk 0:01:42]} 34. Re7+ {[%clk 0:00:22]}  Kf3 {[%clk 0:01:36]} 35. Rh1 {[%clk 0:00:18]}  Rce2 {[%clk 0:01:32]} 36. Rf7 {[%clk 0:00:15]}  Kg3 {[%clk 0:01:22]} 37. a4 {[%clk 0:00:13]}  d3 {[%clk 0:01:16]} 38. a5 {[%clk 0:00:13]}  d2 {[%clk 0:01:16]} 39. Rd1 {[%clk 0:00:14]}  Re1 {[%clk 0:01:15]} 40. Kc2 {[%clk 0:00:13]}  Rxd1 {[%clk 0:01:15]} 41. Kxd1 {[%clk 0:00:13]}  Rg1+ {[%clk 0:01:16]} 42. Kc2 {[%clk 0:00:14]}  d1=Q+ {[%clk 0:01:17]} 43. Kb2 {[%clk 0:00:14]}  Qa1+ {[%clk 0:01:16]} 44. Kc2 {[%clk 0:00:14]}  Qb1+ {[%clk 0:01:16]} 45. Kc3 {[%clk 0:00:14]}  Rc1# {[%clk 0:01:13]} 0-1


[Site "https://www.chess.com"]

[Event "Titled Tuesday Blitz April 18 Early 2023"]
[White "Aaditya Dhingra"]
[Black "Estrada Nieto, Julian"]
[WhiteFideId "25678191"]
[BlackFideId "5101018"]
[WhiteElo "2083"]
[BlackElo "2161"]
[Result "1-0"]
[Round "09"]
[TimeControl "180+2"]
[Date "2023.04.18"]
[WhiteClock "0:00:18"]
[BlackClock "0:00:02"]

1. d4 {[%clk 0:03:00]}  d5 {[%clk 0:02:55]} 2. c4 {[%clk 0:03:00]}  dxc4 {[%clk 0:02:55]} 3. e3 {[%clk 0:02:59]}  Nf6 {[%clk 0:02:54]} 4. Bxc4 {[%clk 0:02:59]}  e6 {[%clk 0:02:55]} 5. Nf3 {[%clk 0:02:59]}  c5 {[%clk 0:02:55]} 6. O-O {[%clk 0:02:59]}  a6 {[%clk 0:02:56]} 7. a4 {[%clk 0:02:57]}  Nc6 {[%clk 0:02:55]} 8. Qe2 {[%clk 0:02:57]}  Be7 {[%clk 0:02:55]} 9. Rd1 {[%clk 0:02:57]}  O-O {[%clk 0:02:54]} 10. dxc5 {[%clk 0:02:56]}  Qc7 {[%clk 0:02:54]} 11. Nc3 {[%clk 0:02:51]}  Bxc5 {[%clk 0:02:54]} 12. h3 {[%clk 0:02:47]}  b6 {[%clk 0:02:51]} 13. e4 {[%clk 0:02:45]}  Nh5 {[%clk 0:02:41]} 14. Be3 {[%clk 0:02:34]}  Nf4 {[%clk 0:02:39]} 15. Qd2 {[%clk 0:02:21]}  Bxe3 {[%clk 0:02:21]} 16. fxe3 {[%clk 0:02:16]}  Ng6 {[%clk 0:02:19]} 17. Qd6 {[%clk 0:01:54]}  Ra7 {[%clk 0:02:12]} 18. Rac1 {[%clk 0:01:50]}  Rd8 {[%clk 0:01:39]} 19. Qa3 {[%clk 0:01:46]}  Rxd1+ {[%clk 0:01:18]} 20. Rxd1 {[%clk 0:01:45]}  h6 {[%clk 0:01:17]} 21. Ba2 {[%clk 0:01:39]}  Nce5 {[%clk 0:01:11]} 22. Nd4 {[%clk 0:01:36]}  Qc5 {[%clk 0:01:09]} 23. Qxc5 {[%clk 0:01:30]}  bxc5 {[%clk 0:01:09]} 24. Nb3 {[%clk 0:01:31]}  Rc7 {[%clk 0:01:04]} 25. Rd8+ {[%clk 0:01:30]}  Kh7 {[%clk 0:01:04]} 26. Na5 {[%clk 0:01:29]}  Nc6 {[%clk 0:00:48]} 27. Nxc6 {[%clk 0:01:25]}  Rxc6 {[%clk 0:00:49]} 28. Kf2 {[%clk 0:01:19]}  Ne5 {[%clk 0:00:47]} 29. Kg3 {[%clk 0:01:15]}  Rc7 {[%clk 0:00:44]} 30. Bb1 {[%clk 0:01:14]}  Bb7 {[%clk 0:00:38]} 31. b3 {[%clk 0:01:11]}  Kg6 {[%clk 0:00:32]} 32. Bc2 {[%clk 0:01:08]}  Kf6 {[%clk 0:00:32]} 33. Ne2 {[%clk 0:00:56]}  Rd7 {[%clk 0:00:29]} 34. Rxd7 {[%clk 0:00:49]}  Nxd7 {[%clk 0:00:29]} 35. Kf4 {[%clk 0:00:49]}  g5+ {[%clk 0:00:28]} 36. Kg3 {[%clk 0:00:49]}  Ne5 {[%clk 0:00:29]} 37. Ng1 {[%clk 0:00:46]}  Ke7 {[%clk 0:00:21]} 38. Nf3 {[%clk 0:00:45]}  Kd6 {[%clk 0:00:21]} 39. Nd2 {[%clk 0:00:44]}  Nc6 {[%clk 0:00:15]} 40. Nc4+ {[%clk 0:00:43]}  Kc7 {[%clk 0:00:11]} 41. e5 {[%clk 0:00:41]}  Nb4 {[%clk 0:00:11]} 42. Bh7 {[%clk 0:00:41]}  Kd7 {[%clk 0:00:05]} 43. Bg8 {[%clk 0:00:38]}  Ke7 {[%clk 0:00:05]} 44. Bxf7 {[%clk 0:00:38]}  Bd5 {[%clk 0:00:04]} 45. Bg6 {[%clk 0:00:34]}  Bxc4 {[%clk 0:00:04]} 46. bxc4 {[%clk 0:00:34]}  a5 {[%clk 0:00:05]} 47. Kf3 {[%clk 0:00:33]}  Na2 {[%clk 0:00:05]} 48. Bc2 {[%clk 0:00:31]}  Nc3 {[%clk 0:00:03]} 49. g3 {[%clk 0:00:27]}  Na2 {[%clk 0:00:03]} 50. Ke4 {[%clk 0:00:26]}  Nb4 {[%clk 0:00:04]} 51. Bb1 {[%clk 0:00:25]}  Nc6 {[%clk 0:00:04]} 52. Bc2 {[%clk 0:00:24]}  Kf7 {[%clk 0:00:04]} 53. Bd1 {[%clk 0:00:23]}  Kg7 {[%clk 0:00:04]} 54. Bh5 {[%clk 0:00:22]}  Nb4 {[%clk 0:00:03]} 55. Be8 {[%clk 0:00:20]}  Kf8 {[%clk 0:00:03]} 56. Bb5 {[%clk 0:00:20]}  Ke7 {[%clk 0:00:04]} 57. h4 {[%clk 0:00:20]}  gxh4 {[%clk 0:00:03]} 58. gxh4 {[%clk 0:00:20]}  Kf7 {[%clk 0:00:04]} 59. Kf4 {[%clk 0:00:19]}  Nc2 {[%clk 0:00:04]} 60. Kf3 {[%clk 0:00:19]}  Nb4 {[%clk 0:00:04]} 61. Kg4 {[%clk 0:00:19]}  Nc2 {[%clk 0:00:03]} 62. Kf4 {[%clk 0:00:19]}  Nb4 {[%clk 0:00:03]} 63. Kg4 {[%clk 0:00:19]}  Nc2 {[%clk 0:00:03]} 64. Kh5 {[%clk 0:00:20]}  Kg7 {[%clk 0:00:01]} 65. Bd7 {[%clk 0:00:20]}  Nxe3 {[%clk 0:00:02]} 66. Bxe6 {[%clk 0:00:20]}  Ng2 {[%clk 0:00:01]} 67. Bd7 {[%clk 0:00:19]}  Nf4+ {[%clk 0:00:01]} 68. Kg4 {[%clk 0:00:19]}  Nd3 {[%clk 0:00:02]} 69. Kf5 {[%clk 0:00:18]} 1-0


[Site "https://www.chess.com"]

[Event "Titled Tuesday Blitz April 18 Early 2023"]
[White "Sargissyan, Sargis"]
[Black "Kucuksari, Kaan"]
[WhiteFideId "13303210"]
[BlackFideId "6380166"]
[WhiteElo "2109"]
[BlackElo "2364"]
[Result "0-1"]
[Round "09"]
[TimeControl "180+2"]
[Date "2023.04.18"]
[WhiteClock "0:00:08"]
[BlackClock "0:02:26"]

1. e4 {[%clk 0:02:49]}  Nf6 {[%clk 0:02:59]} 2. e5 {[%clk 0:02:48]}  Nd5 {[%clk 0:03:00]} 3. d4 {[%clk 0:02:48]}  d6 {[%clk 0:03:01]} 4. Nf3 {[%clk 0:02:48]}  dxe5 {[%clk 0:03:01]} 5. Nxe5 {[%clk 0:02:47]}  c6 {[%clk 0:03:02]} 6. c4 {[%clk 0:02:44]}  Nb4 {[%clk 0:03:01]} 7. Be3 {[%clk 0:02:44]}  Bf5 {[%clk 0:03:01]} 8. Na3 {[%clk 0:02:43]}  Nd7 {[%clk 0:03:00]} 9. Nd3 {[%clk 0:02:39]}  e5 {[%clk 0:02:55]} 10. Nc2 {[%clk 0:02:26]}  Nxc2+ {[%clk 0:02:46]} 11. Qxc2 {[%clk 0:02:27]}  Bb4+ {[%clk 0:02:46]} 12. Bd2 {[%clk 0:02:09]}  Bxd2+ {[%clk 0:02:46]} 13. Qxd2 {[%clk 0:02:10]}  exd4 {[%clk 0:02:45]} 14. O-O-O {[%clk 0:02:10]}  O-O {[%clk 0:02:45]} 15. g4 {[%clk 0:01:37]}  Bxg4 {[%clk 0:02:39]} 16. Re1 {[%clk 0:01:35]}  Re8 {[%clk 0:02:39]} 17. Rg1 {[%clk 0:01:32]}  Bf5 {[%clk 0:02:38]} 18. Rxe8+ {[%clk 0:01:18]}  Qxe8 {[%clk 0:02:39]} 19. Qg5 {[%clk 0:01:18]}  Bg6 {[%clk 0:02:37]} 20. h4 {[%clk 0:01:19]}  Nf6 {[%clk 0:02:36]} 21. h5 {[%clk 0:00:58]}  Nxh5 {[%clk 0:02:34]} 22. Qh4 {[%clk 0:00:12]}  Nf6 {[%clk 0:02:26]} 23. Nf4 {[%clk 0:00:08]}  Qe1# {[%clk 0:02:26]} 0-1


[Site "https://www.chess.com"]

[Event "Titled Tuesday Blitz April 18 Early 2023"]
[White "Vivas Zamora, Fabian Ernesto"]
[Black "Vlassov, Nikolai"]
[WhiteFideId "3902480"]
[BlackFideId "4103360"]
[WhiteElo "2262"]
[BlackElo "2324"]
[Result "0-1"]
[Round "09"]
[TimeControl "180+2"]
[Date "2023.04.18"]
[WhiteClock "0:00:21"]
[BlackClock "0:02:03"]

1. e4 {[%clk 0:02:03]}  Nc6 {[%clk 0:02:57]} 2. d4 {[%clk 0:02:02]}  d5 {[%clk 0:02:57]} 3. e5 {[%clk 0:02:02]}  h5 {[%clk 0:02:57]} 4. c3 {[%clk 0:01:57]}  Bg4 {[%clk 0:02:57]} 5. f3 {[%clk 0:01:54]}  Bf5 {[%clk 0:02:57]} 6. Bd3 {[%clk 0:01:49]}  Qd7 {[%clk 0:02:57]} 7. Be3 {[%clk 0:01:45]}  O-O-O {[%clk 0:02:56]} 8. b4 {[%clk 0:01:24]}  f6 {[%clk 0:02:56]} 9. f4 {[%clk 0:01:18]}  g5 {[%clk 0:02:55]} 10. b5 {[%clk 0:00:56]}  Na5 {[%clk 0:02:54]} 11. fxg5 {[%clk 0:00:56]}  fxe5 {[%clk 0:02:52]} 12. dxe5 {[%clk 0:00:54]}  Bxd3 {[%clk 0:02:41]} 13. Qxd3 {[%clk 0:00:55]}  Nc4 {[%clk 0:02:40]} 14. Nf3 {[%clk 0:00:52]}  e6 {[%clk 0:02:25]} 15. Nbd2 {[%clk 0:00:52]}  Nxe3 {[%clk 0:02:06]} 16. Qxe3 {[%clk 0:00:50]}  Qxb5 {[%clk 0:02:07]} 17. Qxa7 {[%clk 0:00:38]}  Bc5 {[%clk 0:02:06]} 18. Rb1 {[%clk 0:00:34]}  Qxb1+ {[%clk 0:02:04]} 19. Nxb1 {[%clk 0:00:33]}  Bxa7 {[%clk 0:02:05]} 20. Nbd2 {[%clk 0:00:23]}  Ne7 {[%clk 0:02:04]} 21. Rf1 {[%clk 0:00:21]}  Rdf8 {[%clk 0:02:03]} 22. h4 {[%clk 0:00:21]} 0-1


[Site "https://www.chess.com"]

[Event "Titled Tuesday Blitz April 18 Early 2023"]
[White "Lach, Aleksandra"]
[Black "Ibadov, Dashgyn"]
[WhiteFideId "1134299"]
[BlackFideId "24107514"]
[WhiteElo "2111"]
[BlackElo "2208"]
[Result "0-1"]
[Round "09"]
[TimeControl "180+2"]
[Date "2023.04.18"]
[WhiteClock "0:00:09"]
[BlackClock "0:00:05"]

1. e4 {[%clk 0:02:59]}  e6 {[%clk 0:02:59]} 2. d4 {[%clk 0:02:53]}  d5 {[%clk 0:03:00]} 3. Nc3 {[%clk 0:02:54]}  Nf6 {[%clk 0:03:00]} 4. exd5 {[%clk 0:02:54]}  exd5 {[%clk 0:02:59]} 5. Bd3 {[%clk 0:02:54]}  Be7 {[%clk 0:02:48]} 6. Bg5 {[%clk 0:02:46]}  O-O {[%clk 0:02:42]} 7. Qd2 {[%clk 0:02:31]}  c6 {[%clk 0:02:40]} 8. O-O-O {[%clk 0:02:31]}  b5 {[%clk 0:02:40]} 9. f3 {[%clk 0:02:29]}  b4 {[%clk 0:02:40]} 10. Nce2 {[%clk 0:02:23]}  a5 {[%clk 0:02:38]} 11. Kb1 {[%clk 0:02:20]}  Nbd7 {[%clk 0:02:32]} 12. h4 {[%clk 0:02:13]}  a4 {[%clk 0:02:32]} 13. Bxf6 {[%clk 0:02:09]}  Nxf6 {[%clk 0:02:28]} 14. g4 {[%clk 0:02:01]}  a3 {[%clk 0:02:01]} 15. b3 {[%clk 0:01:58]}  Qc7 {[%clk 0:01:52]} 16. h5 {[%clk 0:01:47]}  c5 {[%clk 0:01:47]} 17. dxc5 {[%clk 0:01:46]}  Qe5 {[%clk 0:01:40]} 18. c3 {[%clk 0:01:43]}  Bxc5 {[%clk 0:01:31]} 19. f4 {[%clk 0:01:41]}  Qb8 {[%clk 0:01:12]} 20. g5 {[%clk 0:01:32]}  Ne4 {[%clk 0:01:12]} 21. Bxe4 {[%clk 0:01:28]}  dxe4 {[%clk 0:01:13]} 22. Qd5 {[%clk 0:01:16]}  Qb6 {[%clk 0:00:36]} 23. g6 {[%clk 0:01:13]}  Bb7 {[%clk 0:00:31]} 24. gxh7+ {[%clk 0:01:10]}  Kh8 {[%clk 0:00:30]} 25. Qf5 {[%clk 0:00:58]}  e3 {[%clk 0:00:23]} 26. Rh2 {[%clk 0:00:27]}  Rae8 {[%clk 0:00:22]} 27. Ka1 {[%clk 0:00:21]}  Be4 {[%clk 0:00:20]} 28. Qg4 {[%clk 0:00:19]}  bxc3 {[%clk 0:00:18]} 29. Nxc3 {[%clk 0:00:19]}  Bd4 {[%clk 0:00:18]} 30. Ne2 {[%clk 0:00:19]}  Rc8 {[%clk 0:00:15]} 31. Nxd4 {[%clk 0:00:13]}  Rxc3 {[%clk 0:00:12]} 32. h6 {[%clk 0:00:14]}  g6 {[%clk 0:00:08]} 33. Qg5 {[%clk 0:00:14]}  Qxd4 {[%clk 0:00:07]} 34. Qe5+ {[%clk 0:00:08]}  Qxe5 {[%clk 0:00:07]} 35. fxe5 {[%clk 0:00:09]}  Rfc8 {[%clk 0:00:05]} 0-1


[Site "https://www.chess.com"]

[Event "Titled Tuesday Blitz April 18 Early 2023"]
[White "Dwilewicz, Katarzyna"]
[Black "Saravana, Krishnan P."]
[WhiteFideId "1148486"]
[BlackFideId "5018382"]
[WhiteElo "2065"]
[BlackElo "2189"]
[Result "1-0"]
[Round "09"]
[TimeControl "180+2"]
[Date "2023.04.18"]
[WhiteClock "0:00:05"]
[BlackClock "0:01:06"]

1. e4 {[%clk 0:02:55]}  c6 {[%clk 0:02:59]} 2. d4 {[%clk 0:02:54]}  d5 {[%clk 0:02:56]} 3. exd5 {[%clk 0:02:54]}  cxd5 {[%clk 0:02:56]} 4. Bd3 {[%clk 0:02:54]}  Nc6 {[%clk 0:02:55]} 5. c3 {[%clk 0:02:55]}  g6 {[%clk 0:02:56]} 6. Bf4 {[%clk 0:02:53]}  Bf5 {[%clk 0:02:55]} 7. Bxf5 {[%clk 0:02:51]}  gxf5 {[%clk 0:02:56]} 8. Nd2 {[%clk 0:02:51]}  e6 {[%clk 0:02:56]} 9. Qf3 {[%clk 0:02:51]}  Nf6 {[%clk 0:02:57]} 10. Ne2 {[%clk 0:02:51]}  Bd6 {[%clk 0:02:57]} 11. O-O-O {[%clk 0:02:48]}  Rc8 {[%clk 0:02:53]} 12. Kb1 {[%clk 0:02:47]}  Ne4 {[%clk 0:02:52]} 13. Nxe4 {[%clk 0:02:42]}  fxe4 {[%clk 0:02:38]} 14. Qg3 {[%clk 0:02:41]}  Be7 {[%clk 0:02:34]} 15. f3 {[%clk 0:02:30]}  exf3 {[%clk 0:02:20]} 16. Qxf3 {[%clk 0:02:29]}  Na5 {[%clk 0:02:17]} 17. Rhf1 {[%clk 0:02:15]}  f6 {[%clk 0:02:17]} 18. Qh5+ {[%clk 0:02:12]}  Kd7 {[%clk 0:02:16]} 19. Bh6 {[%clk 0:02:04]}  Rg8 {[%clk 0:02:12]} 20. Nf4 {[%clk 0:01:58]}  Qe8 {[%clk 0:02:12]} 21. Qh3 {[%clk 0:01:45]}  Rc6 {[%clk 0:02:06]} 22. Rde1 {[%clk 0:01:34]}  Bd8 {[%clk 0:01:49]} 23. Rxe6 {[%clk 0:01:04]}  Rxe6 {[%clk 0:01:48]} 24. Re1 {[%clk 0:01:05]}  f5 {[%clk 0:01:48]} 25. Qxf5 {[%clk 0:01:02]}  Rg6 {[%clk 0:01:48]} 26. Qxd5+ {[%clk 0:00:37]}  Kc8 {[%clk 0:01:46]} 27. Rxe6 {[%clk 0:00:32]}  Rxe6 {[%clk 0:01:45]} 28. Qxe6+ {[%clk 0:00:30]}  Qd7 {[%clk 0:01:43]} 29. Kc2 {[%clk 0:00:21]}  Nc6 {[%clk 0:01:41]} 30. Kd3 {[%clk 0:00:20]}  Bc7 {[%clk 0:01:40]} 31. Qxd7+ {[%clk 0:00:19]}  Kxd7 {[%clk 0:01:40]} 32. Ke4 {[%clk 0:00:17]}  b5 {[%clk 0:01:34]} 33. h4 {[%clk 0:00:16]}  a5 {[%clk 0:01:33]} 34. g4 {[%clk 0:00:15]}  a4 {[%clk 0:01:33]} 35. Nd5 {[%clk 0:00:13]}  Bd8 {[%clk 0:01:32]} 36. h5 {[%clk 0:00:12]}  Na5 {[%clk 0:01:29]} 37. Bf4 {[%clk 0:00:10]}  Nc4 {[%clk 0:01:29]} 38. b3 {[%clk 0:00:11]}  Na5 {[%clk 0:01:24]} 39. bxa4 {[%clk 0:00:10]}  bxa4 {[%clk 0:01:24]} 40. g5 {[%clk 0:00:10]}  Nc4 {[%clk 0:01:21]} 41. g6 {[%clk 0:00:09]}  hxg6 {[%clk 0:01:21]} 42. h6 {[%clk 0:00:07]}  g5 {[%clk 0:01:13]} 43. h7 {[%clk 0:00:06]}  gxf4 {[%clk 0:01:12]} 44. h8=Q {[%clk 0:00:07]}  Nd6+ {[%clk 0:01:12]} 45. Kxf4 {[%clk 0:00:05]}  Bg5+ {[%clk 0:01:12]} 46. Kg4 {[%clk 0:00:04]}  Bd8 {[%clk 0:01:11]} 47. Qg7+ {[%clk 0:00:04]}  Kc6 {[%clk 0:01:11]} 48. Nb4+ {[%clk 0:00:05]}  Kb5 {[%clk 0:01:10]} 49. Qd7+ {[%clk 0:00:05]}  Kc4 {[%clk 0:01:09]} 50. Qxd6 {[%clk 0:00:04]}  Ba5 {[%clk 0:01:06]} 51. Qc6# {[%clk 0:00:05]} 1-0


[Site "https://www.chess.com"]

[Event "Titled Tuesday Blitz April 18 Early 2023"]
[White "LeoLV10"]
[Black "Lehtosaari, Mauri"]
[BlackFideId "501999"]
[WhiteElo "2394"]
[BlackElo "2506"]
[Result "0-1"]
[Round "09"]
[TimeControl "180+2"]
[Date "2023.04.18"]
[WhiteClock "0:00:02"]
[BlackClock "0:00:19"]

1. e4 {[%clk 0:03:00]}  d5 {[%clk 0:02:59]} 2. exd5 {[%clk 0:03:01]}  Qxd5 {[%clk 0:03:00]} 3. Nc3 {[%clk 0:03:01]}  Qd8 {[%clk 0:03:00]} 4. Bc4 {[%clk 0:03:01]}  Nf6 {[%clk 0:02:59]} 5. d3 {[%clk 0:03:01]}  Bg4 {[%clk 0:02:55]} 6. f3 {[%clk 0:03:02]}  Bh5 {[%clk 0:02:50]} 7. Bd2 {[%clk 0:03:01]}  e6 {[%clk 0:02:49]} 8. g4 {[%clk 0:02:40]}  Nxg4 {[%clk 0:02:21]} 9. fxg4 {[%clk 0:02:30]}  Qh4+ {[%clk 0:02:17]} 10. Kf1 {[%clk 0:02:29]}  Bxg4 {[%clk 0:02:15]} 11. Qe1 {[%clk 0:01:52]}  Bh3+ {[%clk 0:02:10]} 12. Nxh3 {[%clk 0:01:03]}  Qxh3+ {[%clk 0:02:11]} 13. Kf2 {[%clk 0:01:04]}  Nd7 {[%clk 0:01:53]} 14. Qf1 {[%clk 0:00:44]}  Qh5 {[%clk 0:01:24]} 15. Be3 {[%clk 0:00:29]}  Ne5 {[%clk 0:01:14]} 16. Qe2 {[%clk 0:00:16]}  Qh4+ {[%clk 0:01:01]} 17. Kf1 {[%clk 0:00:13]}  Be7 {[%clk 0:00:34]} 18. Bf2 {[%clk 0:00:08]}  Qh3+ {[%clk 0:00:30]} 19. Ke1 {[%clk 0:00:07]}  Qg2 {[%clk 0:00:21]} 20. Rg1 {[%clk 0:00:06]}  Nf3+ {[%clk 0:00:20]} 21. Kd1 {[%clk 0:00:05]}  Nxg1 {[%clk 0:00:20]} 22. Ne4 {[%clk 0:00:02]}  Nxe2 {[%clk 0:00:19]} 0-1


[Site "https://www.chess.com"]

[Event "Titled Tuesday Blitz April 18 Early 2023"]
[White "Ljukin, Sergei"]
[Black "Pavlidou, Ekaterini"]
[WhiteFideId "14102200"]
[BlackFideId "4213262"]
[WhiteElo "2312"]
[BlackElo "2126"]
[Result "0-1"]
[Round "09"]
[TimeControl "180+2"]
[Date "2023.04.18"]
[WhiteClock "0:00:01"]
[BlackClock "0:00:14"]

1. e4 {[%clk 0:02:50]}  c5 {[%clk 0:02:59]} 2. Nf3 {[%clk 0:02:50]}  Nc6 {[%clk 0:03:00]} 3. d4 {[%clk 0:02:50]}  cxd4 {[%clk 0:03:00]} 4. Nxd4 {[%clk 0:02:51]}  e5 {[%clk 0:03:01]} 5. Nb5 {[%clk 0:02:51]}  d6 {[%clk 0:03:01]} 6. N1c3 {[%clk 0:02:51]}  a6 {[%clk 0:02:59]} 7. Na3 {[%clk 0:02:51]}  Be6 {[%clk 0:02:59]} 8. Nc4 {[%clk 0:02:49]}  b5 {[%clk 0:02:58]} 9. Ne3 {[%clk 0:02:49]}  g6 {[%clk 0:02:58]} 10. a4 {[%clk 0:02:40]}  b4 {[%clk 0:02:56]} 11. Ncd5 {[%clk 0:02:38]}  Bg7 {[%clk 0:02:50]} 12. Bc4 {[%clk 0:02:37]}  Nge7 {[%clk 0:02:49]} 13. O-O {[%clk 0:02:37]}  Na5 {[%clk 0:02:45]} 14. Ba2 {[%clk 0:02:36]}  O-O {[%clk 0:02:40]} 15. Nxb4 {[%clk 0:02:34]}  Bxa2 {[%clk 0:02:30]} 16. Rxa2 {[%clk 0:02:34]}  f5 {[%clk 0:02:30]} 17. f3 {[%clk 0:02:27]}  Qb6 {[%clk 0:02:28]} 18. Nd5 {[%clk 0:02:23]}  Nxd5 {[%clk 0:02:22]} 19. Qxd5+ {[%clk 0:02:22]}  Kh8 {[%clk 0:02:22]} 20. Kh1 {[%clk 0:02:23]}  Rac8 {[%clk 0:02:17]} 21. Bd2 {[%clk 0:02:12]}  Rc5 {[%clk 0:02:07]} 22. Qd3 {[%clk 0:02:04]}  Nb7 {[%clk 0:02:00]} 23. b4 {[%clk 0:01:42]}  Rcc8 {[%clk 0:01:57]} 24. Nd5 {[%clk 0:01:38]}  Qc6 {[%clk 0:01:35]} 25. c3 {[%clk 0:01:15]}  fxe4 {[%clk 0:01:31]} 26. Qxe4 {[%clk 0:01:10]}  Rf7 {[%clk 0:01:23]} 27. Be3 {[%clk 0:00:46]}  Nd8 {[%clk 0:01:22]} 28. Rd1 {[%clk 0:00:40]}  Ne6 {[%clk 0:01:22]} 29. Nb6 {[%clk 0:00:35]}  Qxe4 {[%clk 0:01:18]} 30. fxe4 {[%clk 0:00:35]}  Rxc3 {[%clk 0:01:16]} 31. Bg1 {[%clk 0:00:28]}  Nd4 {[%clk 0:01:10]} 32. b5 {[%clk 0:00:19]}  axb5 {[%clk 0:01:07]} 33. a5 {[%clk 0:00:19]}  b4 {[%clk 0:01:04]} 34. Nd5 {[%clk 0:00:16]}  Ra3 {[%clk 0:00:59]} 35. Rxa3 {[%clk 0:00:14]}  bxa3 {[%clk 0:00:59]} 36. Ra1 {[%clk 0:00:12]}  Nc2 {[%clk 0:00:58]} 37. Ra2 {[%clk 0:00:12]}  Nd4 {[%clk 0:00:29]} 38. Rxa3 {[%clk 0:00:11]}  Ra7 {[%clk 0:00:29]} 39. a6 {[%clk 0:00:08]}  h5 {[%clk 0:00:26]} 40. Nb4 {[%clk 0:00:08]}  Bh6 {[%clk 0:00:21]} 41. Bxd4 {[%clk 0:00:03]}  exd4 {[%clk 0:00:21]} 42. Nc6 {[%clk 0:00:04]}  Ra8 {[%clk 0:00:20]} 43. a7 {[%clk 0:00:04]}  Be3 {[%clk 0:00:19]} 44. Rb3 {[%clk 0:00:03]}  d3 {[%clk 0:00:18]} 45. Rxd3 {[%clk 0:00:01]}  Bxa7 {[%clk 0:00:17]} 46. Ra3 {[%clk 0:00:02]}  Rc8 {[%clk 0:00:16]} 47. Ra6 {[%clk 0:00:01]}  Bc5 {[%clk 0:00:15]} 48. g3 {[%clk 0:00:01]}  Re8 {[%clk 0:00:14]} 0-1


[Site "https://www.chess.com"]

[Event "Titled Tuesday Blitz April 18 Early 2023"]
[White "Degenbaev, Aziz"]
[Black "Andersson, Bjorn 1971"]
[WhiteFideId "13802640"]
[BlackFideId "1702114"]
[WhiteElo "2152"]
[BlackElo "2176"]
[Result "1-0"]
[Round "09"]
[TimeControl "180+2"]
[Date "2023.04.18"]
[WhiteClock "0:00:20"]
[BlackClock "0:00:04"]

1. e4 {[%clk 0:03:00]}  c5 {[%clk 0:02:59]} 2. Nf3 {[%clk 0:03:00]}  Nc6 {[%clk 0:03:00]} 3. Bb5 {[%clk 0:03:00]}  e6 {[%clk 0:03:00]} 4. Bxc6 {[%clk 0:02:59]}  bxc6 {[%clk 0:03:00]} 5. d3 {[%clk 0:02:54]}  Ne7 {[%clk 0:03:00]} 6. Nbd2 {[%clk 0:02:40]}  Ng6 {[%clk 0:03:00]} 7. h4 {[%clk 0:02:40]}  h5 {[%clk 0:02:58]} 8. e5 {[%clk 0:02:31]}  Be7 {[%clk 0:02:56]} 9. Nc4 {[%clk 0:02:22]}  Ba6 {[%clk 0:02:42]} 10. Qe2 {[%clk 0:02:18]}  Bxc4 {[%clk 0:02:08]} 11. dxc4 {[%clk 0:02:19]}  Bxh4 {[%clk 0:02:05]} 12. Nxh4 {[%clk 0:02:03]}  Nxh4 {[%clk 0:02:05]} 13. g3 {[%clk 0:02:02]}  Ng6 {[%clk 0:01:54]} 14. Rxh5 {[%clk 0:02:02]}  Rxh5 {[%clk 0:01:54]} 15. Qxh5 {[%clk 0:02:02]}  Qc7 {[%clk 0:01:54]} 16. f4 {[%clk 0:02:00]}  O-O-O {[%clk 0:01:49]} 17. Bd2 {[%clk 0:01:59]}  Rh8 {[%clk 0:01:26]} 18. Qf3 {[%clk 0:01:54]}  Nxe5 {[%clk 0:01:20]} 19. fxe5 {[%clk 0:01:44]}  Qxe5+ {[%clk 0:01:21]} 20. Kd1 {[%clk 0:01:34]}  Rh2 {[%clk 0:01:07]} 21. Bc3 {[%clk 0:01:21]}  Qg5 {[%clk 0:00:57]} 22. a4 {[%clk 0:00:54]}  Qg6 {[%clk 0:00:47]} 23. Rc1 {[%clk 0:00:46]}  Qh6 {[%clk 0:00:40]} 24. Be1 {[%clk 0:00:39]}  Rh1 {[%clk 0:00:30]} 25. Qf4 {[%clk 0:00:28]}  Qh5+ {[%clk 0:00:20]} 26. Kd2 {[%clk 0:00:25]}  Rh2+ {[%clk 0:00:19]} 27. Kc3 {[%clk 0:00:25]}  Qe2 {[%clk 0:00:18]} 28. Kb3 {[%clk 0:00:23]}  f5 {[%clk 0:00:17]} 29. Bc3 {[%clk 0:00:21]}  Rf2 {[%clk 0:00:12]} 30. Qd6 {[%clk 0:00:18]}  Rf3 {[%clk 0:00:10]} 31. Rd1 {[%clk 0:00:18]}  Rxc3+ {[%clk 0:00:06]} 32. bxc3 {[%clk 0:00:18]}  Qe4 {[%clk 0:00:04]} 33. Qxd7+ {[%clk 0:00:18]}  Kb8 {[%clk 0:00:04]} 34. Qd8+ {[%clk 0:00:18]}  Kb7 {[%clk 0:00:04]} 35. Rd7+ {[%clk 0:00:19]}  Ka6 {[%clk 0:00:05]} 36. Qc8+ {[%clk 0:00:20]}  Kb6 {[%clk 0:00:04]} 37. Qb7+ {[%clk 0:00:19]}  Ka5 {[%clk 0:00:04]} 38. Qxa7# {[%clk 0:00:20]} 1-0


[Site "https://www.chess.com"]